[Event "World Junior Chess Championship U20 2022"]
[White "Gadimbayli, Abdulla"]
[Black "Ansat, Aldiyar"]
[WhiteFideId "13404938"]
[BlackFideId "13715658"]
[WhiteElo "2499"]
[BlackElo "2262"]
[Result "1-0"]
[Round "01"]
[TimeControl "5400+30"]
[Date "2022.10.12"]
[WhiteClock "0:19:52"]
[BlackClock "0:26:47"]

1. e4 {[%clk 1:30:49]}  c5 {[%clk 1:30:48]} 2. Nf3 {[%clk 1:31:14]}  Nc6 {[%clk 1:31:12]} 3. Bb5 {[%clk 1:30:37]}  e6 {[%clk 1:31:28]} 4. O-O {[%clk 1:30:24]}  Nge7 {[%clk 1:31:51]} 5. c3 {[%clk 1:30:42]}  a6 {[%clk 1:31:54]} 6. Ba4 {[%clk 1:30:55]}  b5 {[%clk 1:32:19]} 7. Bc2 {[%clk 1:31:21]}  Bb7 {[%clk 1:32:44]} 8. d4 {[%clk 1:30:23]}  cxd4 {[%clk 1:23:31]} 9. Nxd4 {[%clk 1:30:48]}  Ng6 {[%clk 1:19:56]} 10. Nxc6 {[%clk 1:25:52]}  dxc6 {[%clk 1:06:53]} 11. Qe2 {[%clk 1:15:41]}  e5 {[%clk 1:06:06]} 12. Be3 {[%clk 1:11:09]}  Be7 {[%clk 1:05:14]} 13. g3 {[%clk 1:06:07]}  Qd7 {[%clk 0:53:49]} 14. h4 {[%clk 0:55:12]}  h5 {[%clk 0:40:05]} 15. Nd2 {[%clk 0:50:32]}  Qh3 {[%clk 0:35:29]} 16. Qf3 {[%clk 0:46:43]}  Rd8 {[%clk 0:26:55]} 17. Bb3 {[%clk 0:39:58]}  O-O {[%clk 0:19:41]} 18. Qxh5 {[%clk 0:28:07]}  Bc8 {[%clk 0:09:56]} 19. Bd1 {[%clk 0:11:57]}  Rd6 {[%clk 0:05:56]} 20. Qf3 {[%clk 0:06:43]}  Nxh4 {[%clk 0:05:55]} 21. Qh1 {[%clk 0:05:44]}  Rfd8 {[%clk 0:03:12]} 22. Re1 {[%clk 0:03:27]}  Qxh1+ {[%clk 0:00:35]} 23. Kxh1 {[%clk 0:03:56]}  Ng6 {[%clk 0:01:04]} 24. Nb3 {[%clk 0:03:55]}  Kf8 {[%clk 0:00:33]} 25. Kg2 {[%clk 0:04:16]}  Re8 {[%clk 0:00:33]} 26. Bh5 {[%clk 0:04:17]}  Kg8 {[%clk 0:00:36]} 27. Bc5 {[%clk 0:01:10]}  Rf6 {[%clk 0:01:05]} 28. Bxg6 {[%clk 0:01:10]}  Rxg6 {[%clk 0:01:31]} 29. Bxe7 {[%clk 0:01:20]}  Rxe7 {[%clk 0:02:00]} 30. Nc5 {[%clk 0:01:49]}  Bg4 {[%clk 0:00:34]} 31. f3 {[%clk 0:01:41]}  Be6 {[%clk 0:01:00]} 32. Red1 {[%clk 0:01:04]}  Rh6 {[%clk 0:00:36]} 33. Nxa6 {[%clk 0:00:57]}  Bh3+ {[%clk 0:00:51]} 34. Kf2 {[%clk 0:01:25]}  Ree6 {[%clk 0:00:59]} 35. g4 {[%clk 0:00:50]}  Bxg4 {[%clk 0:01:07]} 36. fxg4 {[%clk 0:01:15]}  Rh2+ {[%clk 0:01:35]} 37. Ke3 {[%clk 0:00:48]}  Reh6 {[%clk 0:01:49]} 38. Rf1 {[%clk 0:00:39]}  Rxb2 {[%clk 0:01:51]} 39. Rh1 {[%clk 0:00:46]}  Rxa2 {[%clk 0:01:30]} 40. Rxh6 {[%clk 0:00:37]}  Rxa1 {[%clk 0:01:43]} 41. Rxc6 {[%clk 0:01:03]}  Re1+ {[%clk 0:01:51]} 42. Kd3 {[%clk 0:01:13]}  Rg1 {[%clk 0:01:40]} 43. Rc8+ {[%clk 0:01:03]}  Kh7 {[%clk 0:02:06]} 44. Rc5 {[%clk 0:00:56]}  Rg3+ {[%clk 0:02:08]} 45. Kc2 {[%clk 0:01:15]}  f6 {[%clk 0:02:12]} 46. Rxb5 {[%clk 0:01:24]}  Rxg4 {[%clk 0:02:38]} 47. Rb4 {[%clk 0:00:37]}  g5 {[%clk 0:03:03]} 48. c4 {[%clk 0:29:30]}  Rg2+ {[%clk 0:31:31]} 49. Kb3 {[%clk 0:25:08]}  g4 {[%clk 0:31:39]} 50. c5 {[%clk 0:25:33]}  g3 {[%clk 0:31:15]} 51. c6 {[%clk 0:20:25]}  Rg1 {[%clk 0:31:27]} 52. c7 {[%clk 0:19:42]}  Rc1 {[%clk 0:26:47]} 53. Rb7 {[%clk 0:19:52]} 1-0


[Site "http://www.chessbomb.com"]

[Event "World Junior Chess Championship U20 2022"]
[White "Nouri, Alekhine"]
[Black "Blohberger, Felix"]
[WhiteFideId "5216184"]
[BlackFideId "1632051"]
[WhiteElo "2251"]
[BlackElo "2493"]
[Result "1/2-1/2"]
[Round "01"]
[TimeControl "5400+30"]
[Date "2022.10.12"]
[WhiteClock "0:14:48"]
[BlackClock "0:00:59"]

1. e4 {[%clk 1:30:49]}  c5 {[%clk 1:30:47]} 2. Nc3 {[%clk 1:30:44]}  Nc6 {[%clk 1:30:49]} 3. Bb5 {[%clk 1:30:59]}  Nd4 {[%clk 1:31:09]} 4. Nf3 {[%clk 1:31:13]}  a6 {[%clk 1:31:32]} 5. Bc4 {[%clk 1:31:20]}  b5 {[%clk 1:29:44]} 6. Bd5 {[%clk 1:31:06]}  Rb8 {[%clk 1:27:16]} 7. Nxd4 {[%clk 1:31:15]}  cxd4 {[%clk 1:27:38]} 8. Ne2 {[%clk 1:31:41]}  Nf6 {[%clk 1:26:15]} 9. d3 {[%clk 1:25:40]}  Nxd5 {[%clk 1:25:39]} 10. exd5 {[%clk 1:26:05]}  Bb7 {[%clk 1:26:00]} 11. Nxd4 {[%clk 1:25:05]}  Bxd5 {[%clk 1:26:04]} 12. O-O {[%clk 1:24:55]}  e6 {[%clk 1:22:25]} 13. Bf4 {[%clk 1:13:08]}  Rc8 {[%clk 1:21:58]} 14. c3 {[%clk 1:09:50]}  Bc5 {[%clk 1:11:55]} 15. Ne2 {[%clk 1:03:32]}  O-O {[%clk 1:09:27]} 16. Qd2 {[%clk 0:58:41]}  Re8 {[%clk 0:58:07]} 17. a4 {[%clk 0:55:46]}  Bb7 {[%clk 0:54:12]} 18. axb5 {[%clk 0:40:56]}  axb5 {[%clk 0:54:27]} 19. b4 {[%clk 0:41:01]}  Bf8 {[%clk 0:47:40]} 20. Ra7 {[%clk 0:32:49]}  Qb6 {[%clk 0:46:09]} 21. Be3 {[%clk 0:33:03]}  Qc6 {[%clk 0:45:33]} 22. f3 {[%clk 0:33:29]}  e5 {[%clk 0:45:42]} 23. c4 {[%clk 0:32:15]}  d5 {[%clk 0:32:50]} 24. c5 {[%clk 0:28:45]}  d4 {[%clk 0:30:11]} 25. Bf2 {[%clk 0:29:11]}  Re6 {[%clk 0:23:19]} 26. Rfa1 {[%clk 0:25:22]}  Rg6 {[%clk 0:21:47]} 27. Ng3 {[%clk 0:25:35]}  h5 {[%clk 0:17:35]} 28. Ne4 {[%clk 0:17:23]}  Be7 {[%clk 0:15:54]} 29. Bg3 {[%clk 0:09:49]}  Kh7 {[%clk 0:07:40]} 30. Qa2 {[%clk 0:08:20]}  Re6 {[%clk 0:07:08]} 31. h4 {[%clk 0:05:08]}  Rc7 {[%clk 0:06:45]} 32. Qd2 {[%clk 0:05:19]}  f5 {[%clk 0:02:45]} 33. Ng5+ {[%clk 0:03:57]}  Bxg5 {[%clk 0:03:13]} 34. Qxg5 {[%clk 0:03:38]}  Rf7 {[%clk 0:02:06]} 35. Qxh5+ {[%clk 0:00:53]}  Kg8 {[%clk 0:02:31]} 36. Qg5 {[%clk 0:00:39]}  f4 {[%clk 0:02:17]} 37. Qd8+ {[%clk 0:00:39]}  Re8 {[%clk 0:02:01]} 38. Qb6 {[%clk 0:00:33]}  fxg3 {[%clk 0:01:21]} 39. R1a6 {[%clk 0:00:50]}  Qc8 {[%clk 0:00:46]} 40. Qg6 {[%clk 0:00:38]}  Ref8 {[%clk 0:00:34]} 41. Ra5 {[%clk 0:25:02]}  e4 {[%clk 0:13:29]} 42. dxe4 {[%clk 0:24:09]}  d3 {[%clk 0:12:43]} 43. Qxg3 {[%clk 0:23:24]}  Qd8 {[%clk 0:09:08]} 44. Ra1 {[%clk 0:23:16]}  Qd4+ {[%clk 0:07:22]} 45. Kh2 {[%clk 0:23:43]}  d2 {[%clk 0:03:16]} 46. Rd1 {[%clk 0:24:09]}  Qxb4 {[%clk 0:02:10]} 47. Qd6 {[%clk 0:24:35]}  Bxe4 {[%clk 0:00:44]} 48. Rxf7 {[%clk 0:24:45]}  Rxf7 {[%clk 0:01:12]} 49. fxe4 {[%clk 0:23:49]}  Qxe4 {[%clk 0:01:37]} 50. Qd8+ {[%clk 0:23:56]}  Rf8 {[%clk 0:01:50]} 51. Qxd2 {[%clk 0:24:20]}  Qe5+ {[%clk 0:01:44]} 52. Kh1 {[%clk 0:21:26]}  Qxc5 {[%clk 0:02:10]} 53. Rc1 {[%clk 0:21:39]}  Qe5 {[%clk 0:02:14]} 54. Re1 {[%clk 0:21:45]}  Qc5 {[%clk 0:02:40]} 55. Rc1 {[%clk 0:21:35]}  Qf5 {[%clk 0:02:06]} 56. Qa2+ {[%clk 0:16:58]}  Kh8 {[%clk 0:02:07]} 57. Qb3 {[%clk 0:14:41]}  Qf4 {[%clk 0:02:16]} 58. Rc3 {[%clk 0:14:18]}  Qe5 {[%clk 0:01:56]} 59. Rc1 {[%clk 0:14:14]}  Qf4 {[%clk 0:01:53]} 60. Rc3 {[%clk 0:14:42]}  Ra8 {[%clk 0:01:19]} 61. Qd1 {[%clk 0:14:31]}  Qe5 {[%clk 0:01:07]} 62. Qc1 {[%clk 0:14:28]}  b4 {[%clk 0:00:49]} 63. Rc5 {[%clk 0:13:58]}  Ra1 {[%clk 0:00:34]} 64. Rxe5 {[%clk 0:14:22]}  Rxc1+ {[%clk 0:00:59]} 65. Kh2 {[%clk 0:14:48]} 1/2-1/2


[Site "http://www.chessbomb.com"]

[Event "World Junior Chess Championship U20 2022"]
[White "Parkhov, Yair"]
[Black "Nemeth, Zalan"]
[WhiteFideId "2813408"]
[BlackFideId "2512041"]
[WhiteElo "2484"]
[BlackElo "2247"]
[Result "1/2-1/2"]
[Round "01"]
[TimeControl "5400+30"]
[Date "2022.10.12"]
[WhiteClock "0:03:32"]
[BlackClock "0:15:38"]

1. d4 {[%clk 1:30:57]}  Nf6 {[%clk 1:30:47]} 2. c4 {[%clk 1:31:22]}  e6 {[%clk 1:30:31]} 3. Nc3 {[%clk 1:31:46]}  d5 {[%clk 1:30:47]} 4. cxd5 {[%clk 1:28:59]}  exd5 {[%clk 1:31:09]} 5. Bg5 {[%clk 1:29:23]}  c6 {[%clk 1:31:15]} 6. e3 {[%clk 1:29:44]}  g6 {[%clk 1:28:07]} 7. Bd3 {[%clk 1:27:44]}  Bg7 {[%clk 1:28:29]} 8. Nf3 {[%clk 1:22:07]}  O-O {[%clk 1:28:20]} 9. h4 {[%clk 1:12:24]}  h6 {[%clk 1:10:20]} 10. Bf4 {[%clk 1:11:47]}  Bg4 {[%clk 1:07:48]} 11. Qc2 {[%clk 1:11:27]}  Nbd7 {[%clk 1:06:54]} 12. Ne5 {[%clk 1:06:57]}  Be6 {[%clk 1:06:36]} 13. O-O-O {[%clk 0:53:55]}  c5 {[%clk 0:58:29]} 14. h5 {[%clk 0:40:56]}  c4 {[%clk 0:38:57]} 15. Be2 {[%clk 0:25:05]}  Bf5 {[%clk 0:36:29]} 16. Qa4 {[%clk 0:24:43]}  g5 {[%clk 0:29:56]} 17. g4 {[%clk 0:23:13]}  Be6 {[%clk 0:23:33]} 18. Bg3 {[%clk 0:18:37]}  Nxe5 {[%clk 0:21:22]} 19. dxe5 {[%clk 0:19:00]}  Nxg4 {[%clk 0:21:34]} 20. Bxc4 {[%clk 0:17:48]}  Nxe5 {[%clk 0:19:35]} 21. Bxd5 {[%clk 0:17:58]}  Bxd5 {[%clk 0:18:29]} 22. Rxd5 {[%clk 0:17:20]}  Qe7 {[%clk 0:12:59]} 23. Qe4 {[%clk 0:15:16]}  Rfe8 {[%clk 0:11:58]} 24. Rhd1 {[%clk 0:12:18]}  Nc6 {[%clk 0:10:58]} 25. Qxe7 {[%clk 0:11:42]}  Rxe7 {[%clk 0:11:21]} 26. Nb5 {[%clk 0:06:40]}  a6 {[%clk 0:07:35]} 27. Nd6 {[%clk 0:06:04]}  Nb4 {[%clk 0:05:53]} 28. Rc5 {[%clk 0:06:26]}  Rd8 {[%clk 0:04:14]} 29. a3 {[%clk 0:04:49]}  Nc6 {[%clk 0:04:28]} 30. Nxb7 {[%clk 0:03:46]}  Bxb2+ {[%clk 0:03:00]} 31. Kc2 {[%clk 0:04:14]}  Rxd1 {[%clk 0:02:32]} 32. Kxd1 {[%clk 0:04:39]}  Ne5 {[%clk 0:02:12]} 33. Na5 {[%clk 0:02:43]}  f6 {[%clk 0:01:24]} 34. a4 {[%clk 0:02:46]}  Kf7 {[%clk 0:01:07]} 35. Rc8 {[%clk 0:01:45]}  Nd7 {[%clk 0:00:37]} 36. Nc4 {[%clk 0:00:49]}  Be5 {[%clk 0:00:42]} 37. f4 {[%clk 0:00:42]}  gxf4 {[%clk 0:00:55]} 38. exf4 {[%clk 0:00:45]}  Bb8 {[%clk 0:01:12]} 39. Rh8 {[%clk 0:00:39]}  Nf8 {[%clk 0:01:16]} 40. Bh4 {[%clk 0:01:04]}  Re6 {[%clk 0:00:33]} 41. Rxh6 {[%clk 0:25:07]}  Bxf4 {[%clk 0:29:48]} 42. Rxf6+ {[%clk 0:23:50]}  Rxf6 {[%clk 0:30:12]} 43. Bxf6 {[%clk 0:24:14]}  Kxf6 {[%clk 0:30:40]} 44. Kc2 {[%clk 0:18:53]}  Ke6 {[%clk 0:27:10]} 45. Nb2 {[%clk 0:15:44]}  Nd7 {[%clk 0:25:32]} 46. Nd3 {[%clk 0:15:38]}  Bh6 {[%clk 0:24:23]} 47. Kc3 {[%clk 0:09:48]}  Kd6 {[%clk 0:24:44]} 48. Nf2 {[%clk 0:05:27]}  Nf6 {[%clk 0:24:45]} 49. Nd3 {[%clk 0:03:44]}  Nxh5 {[%clk 0:21:12]} 50. Kb4 {[%clk 0:03:26]}  Bd2+ {[%clk 0:21:31]} 51. Kc4 {[%clk 0:03:50]}  Kc6 {[%clk 0:19:46]} 52. Nc5 {[%clk 0:04:17]}  Kb6 {[%clk 0:18:51]} 53. Nd7+ {[%clk 0:04:28]}  Ka5 {[%clk 0:16:10]} 54. Kb3 {[%clk 0:03:11]}  Nf4 {[%clk 0:16:00]} 55. Ne5 {[%clk 0:03:32]}  Kb6 {[%clk 0:15:38]} 1/2-1/2


[Site "http://www.chessbomb.com"]

[Event "World Junior Chess Championship U20 2022"]
[White "Oye-Stromberg, Alexander"]
[Black "Zhu, Jiner"]
[WhiteFideId "1525999"]
[BlackFideId "8608059"]
[WhiteElo "2233"]
[BlackElo "2484"]
[Result "0-1"]
[Round "01"]
[TimeControl "5400+30"]
[Date "2022.10.12"]
[WhiteClock "0:18:54"]
[BlackClock "0:53:41"]

1. d4 {[%clk 1:30:31]}  Nf6 {[%clk 1:30:47]} 2. c4 {[%clk 1:30:46]}  e6 {[%clk 1:31:08]} 3. Nc3 {[%clk 1:30:16]}  Bb4 {[%clk 1:31:28]} 4. Qc2 {[%clk 1:30:17]}  O-O {[%clk 1:31:39]} 5. a3 {[%clk 1:30:29]}  Bxc3+ {[%clk 1:31:53]} 6. Qxc3 {[%clk 1:30:49]}  d5 {[%clk 1:32:13]} 7. Nf3 {[%clk 1:30:09]}  dxc4 {[%clk 1:31:50]} 8. Qxc4 {[%clk 1:30:29]}  b6 {[%clk 1:32:12]} 9. h4 {[%clk 1:27:39]}  Bb7 {[%clk 1:31:48]} 10. Bf4 {[%clk 1:27:16]}  c5 {[%clk 1:30:59]} 11. dxc5 {[%clk 1:25:58]}  Bd5 {[%clk 1:31:10]} 12. Qc2 {[%clk 1:25:35]}  Nbd7 {[%clk 1:30:54]} 13. c6 {[%clk 1:24:16]}  Rc8 {[%clk 1:30:57]} 14. c7 {[%clk 1:23:27]}  Qe7 {[%clk 1:31:19]} 15. e3 {[%clk 1:22:14]}  e5 {[%clk 1:29:33]} 16. Bg3 {[%clk 1:12:29]}  Bxf3 {[%clk 1:29:48]} 17. gxf3 {[%clk 1:12:53]}  Ne8 {[%clk 1:30:07]} 18. Ba6 {[%clk 0:43:53]}  Rxc7 {[%clk 1:30:25]} 19. Qe2 {[%clk 0:44:14]}  Nc5 {[%clk 1:21:12]} 20. Rd1 {[%clk 0:43:06]}  Nd6 {[%clk 1:19:25]} 21. Kf1 {[%clk 0:27:00]}  f5 {[%clk 1:06:38]} 22. h5 {[%clk 0:18:19]}  Nxa6 {[%clk 1:01:41]} 23. Qxa6 {[%clk 0:18:44]}  Nc4 {[%clk 1:02:04]} 24. Qb5 {[%clk 0:16:47]}  f4 {[%clk 0:59:29]} 25. exf4 {[%clk 0:15:07]}  exf4 {[%clk 0:59:22]} 26. Bh4 {[%clk 0:15:30]}  Qe6 {[%clk 0:57:46]} 27. Re1 {[%clk 0:12:20]}  Qf7 {[%clk 0:56:36]} 28. Re7 {[%clk 0:06:38]}  Rxe7 {[%clk 0:56:20]} 29. Bxe7 {[%clk 0:07:03]}  Rc8 {[%clk 0:49:20]} 30. Bb4 {[%clk 0:04:42]}  a5 {[%clk 0:49:42]} 31. Bc3 {[%clk 0:04:23]}  Rc5 {[%clk 0:48:30]} 32. Qa6 {[%clk 0:04:31]}  Qd5 {[%clk 0:47:55]} 33. Kg2 {[%clk 0:03:17]}  Qg5+ {[%clk 0:47:02]} 34. Kf1 {[%clk 0:03:36]}  Qd8 {[%clk 0:47:11]} 35. Ke2 {[%clk 0:00:40]}  Rc7 {[%clk 0:47:13]} 36. Re1 {[%clk 0:00:33]}  h6 {[%clk 0:43:47]} 37. Qb5 {[%clk 0:00:33]}  Rc5 {[%clk 0:42:36]} 38. Qa4 {[%clk 0:00:47]}  b5 {[%clk 0:42:15]} 39. Qc2 {[%clk 0:00:42]}  b4 {[%clk 0:21:34]} 40. axb4 {[%clk 0:00:56]}  axb4 {[%clk 0:22:00]} 41. Bxb4 {[%clk 0:26:22]}  Qe8+ {[%clk 0:50:22]} 42. Kf1 {[%clk 0:25:32]}  Qb5 {[%clk 0:50:41]} 43. Re8+ {[%clk 0:24:35]}  Qxe8 {[%clk 0:50:56]} 44. Bxc5 {[%clk 0:24:59]}  Qb5 {[%clk 0:51:20]} 45. Qe2 {[%clk 0:24:30]}  Qxc5 {[%clk 0:51:21]} 46. Qe8+ {[%clk 0:18:14]}  Qf8 {[%clk 0:51:45]} 47. Qe6+ {[%clk 0:18:29]}  Qf7 {[%clk 0:52:11]} 48. Qc8+ {[%clk 0:18:53]}  Kh7 {[%clk 0:52:36]} 49. b4 {[%clk 0:18:44]}  Qd5 {[%clk 0:52:54]} 50. Qe8 {[%clk 0:18:34]}  Ne5 {[%clk 0:53:01]} 51. b5 {[%clk 0:18:30]}  Qd1+ {[%clk 0:53:15]} 52. Kg2 {[%clk 0:18:54]}  Qxf3+ {[%clk 0:53:41]} 0-1


[Site "http://www.chessbomb.com"]

[Event "World Junior Chess Championship U20 2022"]
[White "Samunenkov, Ihor"]
[Black "Winkelman, Albert"]
[WhiteFideId "14187086"]
[BlackFideId "3219941"]
[WhiteElo "2473"]
[BlackElo "2229"]
[Result "1-0"]
[Round "01"]
[TimeControl "5400+30"]
[Date "2022.10.12"]
[WhiteClock "0:33:09"]
[BlackClock "0:00:51"]

1. e4 {[%clk 1:30:56]}  e5 {[%clk 1:30:47]} 2. Nf3 {[%clk 1:31:13]}  Nc6 {[%clk 1:31:07]} 3. Bb5 {[%clk 1:31:36]}  a6 {[%clk 1:31:30]} 4. Ba4 {[%clk 1:32:00]}  Nf6 {[%clk 1:31:50]} 5. Nc3 {[%clk 1:32:22]}  b5 {[%clk 1:25:47]} 6. Bb3 {[%clk 1:32:47]}  Bc5 {[%clk 1:25:43]} 7. O-O {[%clk 1:32:07]}  d6 {[%clk 1:24:38]} 8. Nd5 {[%clk 1:29:47]}  h6 {[%clk 0:52:45]} 9. c3 {[%clk 1:29:34]}  O-O {[%clk 0:52:45]} 10. d4 {[%clk 1:29:11]}  Ba7 {[%clk 0:52:24]} 11. a4 {[%clk 1:27:45]}  Nxe4 {[%clk 0:31:08]} 12. axb5 {[%clk 1:21:20]}  axb5 {[%clk 0:31:22]} 13. Qe2 {[%clk 1:16:06]}  Nf6 {[%clk 0:31:27]} 14. Nxf6+ {[%clk 1:14:47]}  Qxf6 {[%clk 0:30:59]} 15. Bd5 {[%clk 1:14:49]}  Bd7 {[%clk 0:25:25]} 16. Qxb5 {[%clk 1:13:42]}  e4 {[%clk 0:01:21]} 17. Bxe4 {[%clk 1:11:10]}  Nxd4 {[%clk 0:01:05]} 18. Qxd7 {[%clk 1:06:15]}  Nxf3+ {[%clk 0:01:29]} 19. Bxf3 {[%clk 1:03:56]}  Bxf2+ {[%clk 0:01:53]} 20. Kxf2 {[%clk 1:02:32]}  Rxa1 {[%clk 0:02:10]} 21. Qxc7 {[%clk 1:00:28]}  Qg6 {[%clk 0:02:25]} 22. Be3 {[%clk 0:52:43]}  Rxf1+ {[%clk 0:02:47]} 23. Kxf1 {[%clk 0:53:07]}  Qb1+ {[%clk 0:02:56]} 24. Kf2 {[%clk 0:51:39]}  Qxb2+ {[%clk 0:03:16]} 25. Kg3 {[%clk 0:50:31]}  Qc2 {[%clk 0:02:13]} 26. h3 {[%clk 0:49:17]}  Qg6+ {[%clk 0:02:10]} 27. Kh2 {[%clk 0:45:37]}  Qe6 {[%clk 0:02:12]} 28. Bd4 {[%clk 0:44:01]}  Rc8 {[%clk 0:02:09]} 29. Qa5 {[%clk 0:41:19]}  Qe7 {[%clk 0:02:31]} 30. Qf5 {[%clk 0:40:31]}  Qe6 {[%clk 0:02:43]} 31. Qh5 {[%clk 0:40:22]}  Rc7 {[%clk 0:00:54]} 32. Bd5 {[%clk 0:39:58]}  Qc8 {[%clk 0:01:15]} 33. Qg6 {[%clk 0:39:47]}  Qf8 {[%clk 0:01:41]} 34. Qf5 {[%clk 0:40:04]}  Qe7 {[%clk 0:01:20]} 35. Qg6 {[%clk 0:35:54]}  Qf8 {[%clk 0:01:43]} 36. Qg4 {[%clk 0:35:59]}  Kh7 {[%clk 0:01:30]} 37. Qf5+ {[%clk 0:35:49]}  g6 {[%clk 0:01:21]} 38. Qf6 {[%clk 0:36:03]}  h5 {[%clk 0:01:35]} 39. h4 {[%clk 0:33:35]}  Rd7 {[%clk 0:01:25]} 40. g4 {[%clk 0:33:12]}  Re7 {[%clk 0:00:51]} 41. gxh5 {[%clk 0:33:09]} 1-0


[Site "http://www.chessbomb.com"]

[Event "World Junior Chess Championship U20 2022"]
[White "Avila Rodriguez, Joshua Ad"]
[Black "Gorshtein, Ido"]
[WhiteFideId "5126444"]
[BlackFideId "2815532"]
[WhiteElo "2225"]
[BlackElo "2471"]
[Result "1/2-1/2"]
[Round "01"]
[TimeControl "5400+30"]
[Date "2022.10.12"]
[WhiteClock "0:01:31"]
[BlackClock "0:23:20"]

1. e4 {[%clk 1:30:36]}  c6 {[%clk 1:30:53]} 2. d4 {[%clk 1:30:36]}  d5 {[%clk 1:31:20]} 3. e5 {[%clk 1:30:39]}  Bf5 {[%clk 1:31:42]} 4. h4 {[%clk 1:30:24]}  Qc7 {[%clk 1:31:55]} 5. h5 {[%clk 1:28:12]}  c5 {[%clk 1:29:04]} 6. Nc3 {[%clk 1:01:13]}  cxd4 {[%clk 1:19:51]} 7. Nb5 {[%clk 1:01:05]}  Qxe5+ {[%clk 1:14:31]} 8. Ne2 {[%clk 1:01:05]}  Na6 {[%clk 1:07:15]} 9. Bf4 {[%clk 0:59:12]}  Qf6 {[%clk 1:05:47]} 10. Nexd4 {[%clk 0:46:03]}  Bd7 {[%clk 0:59:17]} 11. Bg3 {[%clk 0:24:13]}  Qb6 {[%clk 0:53:55]} 12. a4 {[%clk 0:21:20]}  Nf6 {[%clk 0:52:08]} 13. f3 {[%clk 0:17:22]}  h6 {[%clk 0:43:12]} 14. c3 {[%clk 0:13:55]}  e6 {[%clk 0:42:43]} 15. a5 {[%clk 0:07:45]}  Qd8 {[%clk 0:39:56]} 16. Nd6+ {[%clk 0:07:32]}  Bxd6 {[%clk 0:40:23]} 17. Bxd6 {[%clk 0:07:56]}  Bc6 {[%clk 0:36:46]} 18. Be5 {[%clk 0:06:52]}  Nc7 {[%clk 0:35:09]} 19. Nxc6 {[%clk 0:04:24]}  bxc6 {[%clk 0:35:13]} 20. Qa4 {[%clk 0:04:48]}  Nb5 {[%clk 0:22:23]} 21. Bxb5 {[%clk 0:04:25]}  cxb5 {[%clk 0:22:45]} 22. Qxb5+ {[%clk 0:04:52]}  Nd7 {[%clk 0:19:41]} 23. Bd6 {[%clk 0:03:51]}  a6 {[%clk 0:19:26]} 24. Qc6 {[%clk 0:03:09]}  Qc8 {[%clk 0:19:18]} 25. Qa4 {[%clk 0:02:08]}  Qb7 {[%clk 0:16:07]} 26. O-O-O {[%clk 0:02:07]}  Rc8 {[%clk 0:10:55]} 27. Qg4 {[%clk 0:02:17]}  Rg8 {[%clk 0:11:05]} 28. Rhe1 {[%clk 0:02:39]}  Nf6 {[%clk 0:10:54]} 29. Rxe6+ {[%clk 0:01:47]}  fxe6 {[%clk 0:10:59]} 30. Qxe6+ {[%clk 0:02:13]}  Kd8 {[%clk 0:11:21]} 31. Be5 {[%clk 0:02:09]}  Qc6 {[%clk 0:08:38]} 32. Bxf6+ {[%clk 0:02:06]}  Kc7 {[%clk 0:09:01]} 33. Be5+ {[%clk 0:01:29]}  Kb7 {[%clk 0:09:24]} 34. Qf7+ {[%clk 0:01:04]}  Ka8 {[%clk 0:09:48]} 35. Qxd5 {[%clk 0:00:46]}  Qxd5 {[%clk 0:08:44]} 36. Rxd5 {[%clk 0:01:14]}  Rgd8 {[%clk 0:07:12]} 37. Rxd8 {[%clk 0:00:46]}  Rxd8 {[%clk 0:07:41]} 38. Bxg7 {[%clk 0:00:42]}  Rg8 {[%clk 0:08:10]} 39. Bxh6 {[%clk 0:01:03]}  Rxg2 {[%clk 0:08:33]} 40. Bf8 {[%clk 0:00:39]}  Rg8 {[%clk 0:08:40]} 41. Bd6 {[%clk 0:00:48]}  Rh8 {[%clk 0:07:11]} 42. b4 {[%clk 0:05:58]}  Rxh5 {[%clk 0:37:15]} 43. Kc2 {[%clk 0:06:21]}  Kb7 {[%clk 0:36:38]} 44. f4 {[%clk 0:06:41]}  Kc6 {[%clk 0:35:40]} 45. Be5 {[%clk 0:07:06]}  Kd5 {[%clk 0:34:58]} 46. Kb3 {[%clk 0:05:49]}  Rh3 {[%clk 0:33:06]} 47. Bb8 {[%clk 0:00:46]}  Rf3 {[%clk 0:29:54]} 48. Bc7 {[%clk 0:01:08]}  Rg3 {[%clk 0:29:22]} 49. Be5 {[%clk 0:00:57]}  Rh3 {[%clk 0:29:47]} 50. Kc2 {[%clk 0:00:46]}  Rg3 {[%clk 0:26:35]} 51. Kd2 {[%clk 0:01:09]}  Rh3 {[%clk 0:25:54]} 52. Ke2 {[%clk 0:01:30]}  Rg3 {[%clk 0:26:08]} 53. Kf2 {[%clk 0:01:00]}  Rh3 {[%clk 0:26:22]} 54. Ke2 {[%clk 0:00:55]}  Rg3 {[%clk 0:26:42]} 55. Bd4 {[%clk 0:01:00]}  Ke4 {[%clk 0:25:59]} 56. b5 {[%clk 0:00:34]}  axb5 {[%clk 0:26:03]} 57. a6 {[%clk 0:00:41]}  Rg2+ {[%clk 0:26:09]} 58. Bf2 {[%clk 0:00:40]}  Rg6 {[%clk 0:26:06]} 59. a7 {[%clk 0:00:41]}  Ra6 {[%clk 0:26:29]} 60. Bd4 {[%clk 0:00:33]}  b4 {[%clk 0:25:43]} 61. Kd2 {[%clk 0:00:41]}  Ra2+ {[%clk 0:21:37]} 62. Kc1 {[%clk 0:00:32]}  Kd3 {[%clk 0:21:27]} 63. Kb1 {[%clk 0:00:37]}  Ra6 {[%clk 0:20:17]} 64. Kb2 {[%clk 0:00:48]}  Kc4 {[%clk 0:20:41]} 65. Be5 {[%clk 0:00:34]}  bxc3+ {[%clk 0:20:52]} 66. Bxc3 {[%clk 0:00:59]}  Rxa7 {[%clk 0:21:17]} 67. Be5 {[%clk 0:01:22]}  Kd3 {[%clk 0:21:41]} 68. Kc1 {[%clk 0:00:51]}  Rb7 {[%clk 0:21:54]} 69. Bd6 {[%clk 0:01:06]}  Rb5 {[%clk 0:21:31]} 70. Be5 {[%clk 0:01:21]}  Rb6 {[%clk 0:22:00]} 71. Bg7 {[%clk 0:00:36]}  Rg6 {[%clk 0:22:11]} 72. Be5 {[%clk 0:00:57]}  Rg2 {[%clk 0:22:38]} 73. Bf6 {[%clk 0:00:55]}  Rc2+ {[%clk 0:23:02]} 74. Kb1 {[%clk 0:01:06]}  Rc6 {[%clk 0:23:04]} 75. Be5 {[%clk 0:01:29]}  Kd2 {[%clk 0:23:30]} 76. Kb2 {[%clk 0:01:31]}  Rb6+ {[%clk 0:23:20]} 1/2-1/2


[Site "http://www.chessbomb.com"]